lending/lending_fUSD_20241214
["ID","MTS","AMOUNT","RATE_DAILY","PERIOD"]
[345355660,1734179446612,-151.0,0.000249,7]
[345355661,1734179446621,-151.0,0.000249,7]
[345355662,1734179446631,-192.23913217,0.000249,7]
[345355663,1734179446640,-151.0,0.000249,7]
[345355664,1734179446649,-151.318733,0.000249,7]
[345355665,1734179446658,-151.0,0.000249,7]
[345355666,1734179446667,-151.0,0.000249,7]
[345355667,1734179446780,-241.163158,0.000249,7]
[345355668,1734179446789,-241.163158,0.000249,7]
[345355669,1734179446799,-52758.60957869,0.000249,2]
[345355670,1734179446808,-1284.84,0.00024925,2]
[345355671,1734179446818,-25000.0,0.00024955,2]
[345355672,1734179446827,-309.491203,0.00024955,7]
[345355673,1734179446836,-309.491203,0.00024955,7]
[345355674,1734179446845,-300.0,0.0002497,2]
[345355675,1734179446854,-500.0,0.00025,120]
[345355676,1734179446863,-1589.95283172,0.00025,2]
[345355677,1734179446873,-254.18743449,0.00025,2]
[345355678,1734179446882,-1487.90503127,0.00025,60]
[345355679,1734179446891,-150.0,0.00025,60]
[345355680,1734179446901,-2906.47189906,0.00025,2]
[345355681,1734179446911,-3191.76986397,0.00025,60]
[345355682,1734179446920,-583.22961181,0.00025,2]
[345355683,1734179446930,-120556.00836074,0.00025,2]
[345355684,1734179446940,-1023.50756095,0.00025,60]
[345355685,1734179446949,-2373.1082516,0.00025,30]
[345355686,1734179446959,-4915.23208388,0.00025,30]
[345355687,1734179446969,-63161.55183136,0.00025,2]
[345355688,1734179446982,-55182.18233837,0.00025,10]
[345355689,1734179446991,-1069.0963367,0.00025,120]
[345355690,1734179447001,-1000.0,0.00025,60]
[345355691,1734179447010,-1000.0,0.00025,60]
[345355692,1734179447019,-1000.0,0.00025,60]
[345355693,1734179447028,-1000.0,0.00025,60]
[345355694,1734179447038,-1000.0,0.00025,30]
[345355695,1734179447047,-1000.0,0.00025,30]
[345355696,1734179447056,-10203.79997257,0.00025,80]
[345355697,1734179447065,-792.57555053,0.00025,120]
[345355698,1734179447074,-10544.80269268,0.00025,10]
[345355699,1734179447083,-4163.17,0.00025,120]
[345355700,1734179447093,-12902.0,0.00025,3]
[345355701,1734179447102,-3946749.85078618,0.00025,2]
[345355702,1734179447112,-5003.974,0.00025,30]
[345355703,1734179447125,-19103.8596468,0.00025,7]
[345355704,1734179447135,-594.34303495,0.00025,120]
[345355705,1734179447144,-500.0,0.00025,3]
[345355706,1734179447154,-3600.0,0.00025,26]
[345355707,1734179447166,-150.0,0.00025,2]
[345355708,1734179447176,-307.57489864,0.00025,120]
[345355709,1734179447186,-2073.82993462,0.00025,30]
[345355710,1734179447195,-157.6423576,0.00025,10]
[345355711,1734179447205,-151.0,0.00025,7]
[345355712,1734179447215,-151.0,0.00025,7]
[345355713,1734179447224,-151.0,0.00025,7]
[345355714,1734179447236,-151.0,0.00025,7]
[345355715,1734179447246,-151.267451,0.00025,7]
[345355716,1734179447255,-151.0,0.00025,7]
[345355717,1734179447265,-151.0,0.00025,7]
[345355718,1734179447274,-151.0,0.00025,7]
[345355719,1734179447283,-151.0,0.00025,7]
[345355720,1734179447293,-151.0,0.00025,7]
[345355721,1734179447302,-151.0,0.00025,7]
[345355722,1734179447311,-151.0,0.00025,7]
[345355723,1734179447320,-151.0,0.00025,7]
[345355724,1734179447329,-151.0,0.00025,7]
[345355725,1734179447339,-151.0,0.00025,7]
[345355726,1734179447348,-222.384351,0.00025,7]
[345355727,1734179447358,-151.0,0.00025,7]
[345355728,1734179447367,-151.0,0.00025,7]
[345355729,1734179447376,-151.0,0.00025,7]
[345355730,1734179447385,-151.0,0.00025,7]
[345355731,1734179447394,-151.0,0.00025,7]
[345355732,1734179447404,-151.0,0.00025,7]
[345355733,1734179447413,-151.0,0.00025,7]
[345355734,1734179447422,-151.0,0.00025,7]
[345355735,1734179447431,-158.824376,0.00025,7]
[345355736,1734179447440,-151.0,0.00025,7]
[345355737,1734179447449,-309.491203,0.00025,7]
[345355738,1734179447458,-241.163158,0.00025,7]
[345355739,1734179447467,-309.491203,0.00025,7]
[345355740,1734179447475,-241.163158,0.00025,7]
[345355741,1734179447487,-151.0,0.00025,7]
[345355742,1734179447496,-151.0,0.00025,7]
[345355743,1734179447505,-1733.34941665,0.00025,2]
[345355744,1734179447514,-33415.32667259,0.00025,7]
[345355745,1734179447523,-1056.0,0.0002508,2]
[345355746,1734179447533,-2476.0,0.00025086,2]
[345355747,1734179447542,-1377.0,0.00025086,2]
[345355748,1734179447552,-3229.87904231,0.000251,2]
[345355749,1734179447561,-2229.71668507,0.000252,120]
[345355750,1734179447571,-401.0,0.000252,13]
[345355751,1734179447580,-2241.29,0.000252,31]
[345355752,1734179447589,-2241.29,0.000252,31]
[345355753,1734179447598,-2241.29,0.000252,31]
[345355754,1734179447607,-2241.29,0.000252,31]
[345355755,1734179447616,-2241.29,0.000252,31]
[345355756,1734179447625,-2241.29,0.000252,31]
[345355757,1734179447635,-2241.29,0.000252,31]
[345355758,1734179447644,-2241.29,0.000252,31]
[345355759,1734179447653,-2241.29,0.000252,31]
[345355760,1734179447663,-2241.29,0.000252,31]
[345355761,1734179447672,-2241.29,0.000252,31]
[345355762,1734179447681,-2241.29,0.000252,31]
[345355763,1734179447690,-2241.29,0.000252,31]
[345355764,1734179447700,-2241.29,0.000252,31]
[345355765,1734179447709,-2241.29,0.000252,31]
[345355766,1734179447718,-2241.29,0.000252,31]
[345355767,1734179447730,-2241.29,0.000252,31]
[345355768,1734179447739,-2241.29,0.000252,31]
[345355769,1734179447749,-2241.29,0.000252,31]
[345355770,1734179447758,-2241.29,0.000252,31]
[345355771,1734179447767,-2241.29,0.000252,31]
[345355772,1734179447776,-2241.29,0.000252,31]
[345355773,1734179447786,-2241.29,0.000252,31]
[345355774,1734179447795,-2241.29,0.000252,31]
[345355775,1734179447804,-1000.0,0.00025239,2]
[345355776,1734179447814,-558.94,0.00025239,120]
[345355777,1734179447823,-280.0,0.000253,10]
[345355778,1734179447833,-2476.0,0.0002536,2]
[345355779,1734179447842,-1377.0,0.0002536,2]
[345355780,1734179447852,-1000.0,0.000254,120]
[345355781,1734179447861,-180.0,0.00025468,2]
[345355782,1734179447871,-152.0,0.0002547,3]
[345355783,1734179447880,-293.56191627,0.0002547,5]
[345355784,1734179447889,-7426.92,0.000255,7]
[345355785,1734179447898,-2476.0,0.00025634,2]
[345355786,1734179447907,-1377.0,0.00025634,2]
[345355787,1734179447917,-401.0,0.000257,14]
[345355788,1734179447926,-435.83,0.0002571,2]
[345355789,1734179447936,-2000.0,0.00025763,120]
[345355790,1734179447945,-14998.0228383,0.000259,7]
[345355791,1734179447955,-2476.0,0.00025908,2]
[345355792,1734179447964,-1377.0,0.00025908,2]
[345355793,1734179447973,-47292.74531225,0.00025922,2]
[345355794,1734179447985,-572.92470345,0.0002599,2]
[345355795,1734179447994,-3600.0,0.00026,27]
[345355796,1734179448004,-4316.78861881,0.00026,2]
[345355797,1734179448013,-4433.65,0.00026,2]
[345355798,1734179448022,-1000.0,0.00026,29]
[345355799,1734179448031,-883676.45558887,0.00026,5]
[345355800,1734179448175,-998.01329871,0.00026,5]
[345355801,1734179448187,-1055.7666937,0.00026,5]
[345355802,1734179448481,-439.82,0.00020245,2]
[345355803,1734179448491,-150.43641341,0.00020521,2]
[345355804,1734179448500,-1895.0,0.00020696,2]
[345355805,1734179448509,-439.82,0.00020968,2]
[345355806,1734179448518,-439.82,0.0002169,2]
[345355807,1734179448528,-439.82,0.00022412,2]
[345355808,1734179448538,-1895.0,0.00023696,2]
[345355809,1734179448547,-212675.41959585,0.00026,5]
[345355810,1734179448561,-291093.00033314,0.00026,5]
[345355811,1734179448570,-1500.0,0.00026,8]
[345355812,1734179448579,-3400.0,0.00026,120]
[345355813,1734179448589,-3130.13610902,0.00026,30]
[345355814,1734179448598,-2000.0,0.00026,60]
[345355815,1734179448607,-203956.07720505,0.00026,2]
[345355816,1734179448616,-54781.0,0.00026,120]
[345355817,1734179448625,-2000.0,0.00026,120]
[345355818,1734179448634,-266.20520543,0.00026,120]
[345355819,1734179448644,-500.0,0.00026,60]
[345355820,1734179448653,-500.0,0.00026,30]
[345355821,1734179448662,-500.0,0.00026,60]
[345355822,1734179448672,-479.83005593,0.00026,60]
[345355823,1734179448681,-250.86,0.00026,3]
[345355824,1734179448689,-200.0,0.00026,2]
[345355825,1734179448698,-427.04338705,0.00026,2]
[345355826,1734179448708,-519.57709948,0.0002604,2]
[345355827,1734179448717,-150.0,0.00026162,120]
[345355828,1734179448727,-2476.0,0.00026182,2]
[345355829,1734179448738,-1377.0,0.00026182,2]
[345355830,1734179448748,-7426.92,0.000262,7]
[345355831,1734179448757,-17879.0,0.000262,30]
[345355832,1734179448767,-401.0,0.000262,14]
[345355833,1734179448776,-984.09951,0.00026249,2]
[345355834,1734179448786,-500.0,0.00026263,120]
[345355835,1734179448795,-1000.0,0.000263,120]
[345355836,1734179448805,-1056.0,0.00026334,2]
[345355837,1734179448814,-500.0,0.00026356,2]
[345355838,1734179448824,-26210.81000926,0.000264,2]
[345355839,1734179448834,-151.0,0.000264,7]
[345355840,1734179448843,-151.0,0.000264,7]
[345355841,1734179448852,-151.0,0.000264,7]
[345355842,1734179448861,-151.0,0.000264,7]
[345355843,1734179448870,-196.012375,0.000264,7]
[345355844,1734179448880,-151.0,0.000264,7]
[345355845,1734179448889,-151.0,0.000264,7]
[345355846,1734179448898,-151.0,0.000264,7]
[345355847,1734179448907,-151.0,0.000264,7]
[345355848,1734179448917,-151.0,0.000264,7]
[345355849,1734179448926,-151.0,0.000264,7]
[345355850,1734179448935,-309.491203,0.000264,7]
[345355851,1734179448944,-241.163158,0.000264,7]
[345355852,1734179449066,-309.491203,0.000264,7]
[345355853,1734179449076,-241.163158,0.000264,7]
[345355854,1734179449087,-151.0,0.000264,7]
[345355855,1734179449096,-2486.91643827,0.00026455,2]
[345355856,1734179449106,-1377.65360444,0.00026455,2]
[345355857,1734179449117,-300.0,0.000265,7]
[345355858,1734179449126,-300.0,0.000265,7]
[345355859,1734179449136,-300.0,0.000265,7]
[345355860,1734179449146,-300.0,0.000265,7]
[345355861,1734179449155,-525.42341209,0.000265,7]
[345355862,1734179449165,-820.21,0.00026661,2]
[345355863,1734179449176,-1895.0,0.00026696,2]
[345355864,1734179449187,-617.356348,0.000267,15]
[345355865,1734179449197,-10000.0,0.0002673,30]
[345355866,1734179449206,-1000.0,0.00026849,3]
[345355867,1734179449216,-1000.0,0.00026849,3]
[345355868,1734179449225,-1000.0,0.00026849,3]
[345355869,1734179449244,-1000.0,0.00026849,3]
[345355870,1734179449254,-1000.0,0.00026849,3]
[345355871,1734179449266,-1000.0,0.00026849,3]
[345355872,1734179449276,-1000.0,0.00026849,3]
[345355873,1734179449286,-1000.0,0.00026849,3]
[345355874,1734179449295,-1000.0,0.00026849,3]
[345355875,1734179449304,-1000.0,0.00026849,3]
[345355876,1734179449314,-1000.0,0.00026849,3]
[345355877,1734179449323,-1000.0,0.00026849,3]
[345355878,1734179449332,-1000.0,0.00026849,3]
[345355879,1734179449342,-383.56270124,0.00026849,3]
[345355880,1734179449352,-7426.92,0.000269,7]
[345355881,1734179449361,-151.0,0.000269,7]
[345355882,1734179449370,-203.19868073,0.000269,7]
[345355883,1734179449379,-150.0,0.00026914,120]
[345355884,1734179449388,-1950.44,0.00026959,2]
[345355885,1734179449398,-435.5,0.00026959,2]
[345355886,1734179449408,-150.0,0.00026959,2]
[345355887,1734179449417,-800.0,0.00026986,120]
[345355888,1734179449426,-800.0,0.00026986,120]
[345355889,1734179449436,-234.80624,0.00027,120]
[345355890,1734179449446,-268000.0,0.00027,60]
[345355891,1734179449455,-250.0,0.00027,2]
[345355892,1734179449465,-381.03652379,0.00027,2]
[345355893,1734179449474,-987.98770187,0.00027,2]
[345355894,1734179449490,-170.09875,0.00027,120]
[345355895,1734179449500,-234.80624,0.00027,120]
[345355896,1734179449509,-10109.46988011,0.00027,120]
[345355897,1734179449518,-293.5078,0.00027,120]
[345355898,1734179449528,-678.37399359,0.00027,120]
[345355899,1734179449538,-2000.0,0.00027,120]
[345355900,1734179449547,-697.83240601,0.00027,120]
[345355901,1734179449557,-2978.90892144,0.00027,120]
[345355902,1734179449566,-150.0,0.00027,120]
[345355903,1734179449576,-109640.12733419,0.00027,5]
[345355904,1734179449585,-305.22493869,0.00027,60]
[345355905,1734179449594,-5756.0,0.00027,120]
[345355906,1734179449604,-109022.393997,0.00027,30]
[345355907,1734179449613,-5243.08,0.00027,120]
[345355908,1734179449623,-3814.27429883,0.00027,60]
[345355909,1734179449632,-3600.0,0.00027,28]
[345355910,1734179449641,-150.0,0.00027,120]
[345355911,1734179449651,-1000.0,0.00027,120]
[345355912,1734179449660,-152.5669,0.00027,120]
[345355913,1734179449669,-5500.99192702,0.00027,120]
[345355914,1734179449679,-250.0,0.00027,5]
[345355915,1734179449688,-50000.0,0.00027,120]
[345355916,1734179449697,-18053.47086371,0.00027,7]
[345355917,1734179449707,-176.34954,0.00027,120]
[345355918,1734179449716,-900.01,0.00027,120]
[345355919,1734179449726,-20000.0,0.00027,2]
[345355920,1734179449742,-2000.0,0.00027,2]
[345355921,1734179449751,-373213.71966061,0.0002701,2]
[345355922,1734179449765,-2029.7058686,0.0002701,2]
[345355923,1734179449869,-404.83,0.0002361,2]
[345355924,1734179449884,-241.17,0.0002361,2]
[345355925,1734179449893,-363.53000176,0.0002701,2]
[345355926,1734179449905,-7278.60002,0.0002701,2]
[345355927,1734179449917,-649.89265696,0.0002701,2]
[345355928,1734179449928,-7024.60304187,0.0002701,2]
[345355929,1734179449939,-24562.13534602,0.0002701,2]
[345355930,1734179449950,-285.26859762,0.0002701,2]
[345355933,1734180271820,151.67,0.00010137,2]
[345355934,1734180429112,-152.12,0.00013699,2]
[345355935,1734180429136,-150.0,0.00016621,2]
[345355936,1734180429159,-1000.0,0.00019178,5]
[345355937,1734180429181,-151.67,0.00019198,2]
[345355938,1734180429205,-1005.89917021,0.00019452,6]
[345355939,1734180429232,-250.0,0.00019523,2]
[345355940,1734180429257,-905.07738738,0.00020888,5]
[345355941,1734180429280,-1103.3358371,0.00020888,5]
[345355942,1734180429305,-218.69296748,0.00020888,5]
[345355943,1734180429329,-905.07738738,0.00020888,5]
[345355944,1734180429352,-218.69296748,0.0002089,5]
[345355945,1734180429377,-1082.276122,0.00020892,5]
[345355946,1734180429400,-218.69296748,0.00020896,5]
[345355947,1734180429424,-9229.6352112,0.00020899,5]
[345355948,1734180429447,-905.07738738,0.00020899,5]
[345355949,1734180429472,-18.77004715,0.00020905,5]
[345355950,1734180451126,-432.68635581,0.00019423,2]
[345355951,1734180451149,-388.62905952,0.00020905,5]
[345355952,1734180452122,-481.41328513,0.00020905,5]
[345355953,1734180511392,500.0,0.00015,120]
[345355954,1734180556088,-150.0,0.00016788,2]
[345355955,1734180598590,602.2748203,0.00019,30]
[345355956,1734180631784,-150.0,0.00020548,5]
[345355957,1734180631794,-150.0,0.00020548,5]
[345355958,1734180631806,-152.13,0.00020548,2]
[345355959,1734180631815,-16.26499558,0.00020905,5]
[345355960,1734180631825,-905.20500442,0.00020906,5]
[345355961,1734180631835,-600.0,0.00020906,5]
[345355962,1734180635783,-3506.54756559,0.00020906,5]
[345355963,1734180635841,-413.21193929,0.00020906,5]
[345355964,1734180635953,-3804.6707019,0.00020906,5]
[345355965,1734180635962,-1103.3358371,0.00020908,5]
[345355966,1734180635972,-200.0,0.00020914,5]
[345355967,1734180635981,-200.0,0.00020914,5]
[345355968,1734180635991,-6848.619901,0.00020914,5]
[345355969,1734180636012,-7809.41088004,0.00020914,5]
[345356167,1734180637789,-49849.20990097,0.00020914,5]
[345356169,1734180637799,-9229.6352112,0.00020917,5]
[345356171,1734180637808,-218.69296748,0.00020917,5]
[345356173,1734180637817,-905.07738738,0.00020918,5]
[345356175,1734180637827,-218.69296748,0.00020919,5]
[345356177,1734180637835,-1082.276122,0.0002092,5]
[345356179,1734180637844,-218.69296748,0.00020924,5]
[345356181,1734180637853,-1103.3358371,0.00020925,5]
[345356182,1734180637863,-200.0,0.00020926,5]
[345356184,1734180637871,-1082.276122,0.00020927,5]
[345356185,1734180637882,-1103.3358371,0.0002093,5]
[345356186,1734180637891,-64507.24068201,0.00020932,5]
[345356187,1734180637900,-1082.276122,0.00020932,5]
[345356188,1734180637910,-9229.6352112,0.00020933,5]
[345356189,1734180637919,-64507.24068201,0.00020934,5]
[345356190,1734180637928,-1103.3358371,0.00020936,5]
[345356191,1734180637937,-9229.6352112,0.00020936,5]
[345356192,1734180637945,-1082.276122,0.00020939,5]
[345356193,1734180637954,-200.0,0.00020939,5]
[345356194,1734180637963,-905.07738738,0.00020942,5]
[345356195,1734180637971,-9229.6352112,0.00020943,5]
[345356196,1734180637980,-1082.276122,0.00020943,5]
[345356197,1734180637989,-1103.3358371,0.00020945,5]
[345356198,1734180637999,-64507.24068201,0.00020946,5]
[345356199,1734180638008,-64507.24068201,0.00020947,5]
[345356200,1734180638025,-64507.24068201,0.00020948,5]
[345356201,1734180638034,-150.0,0.00020986,2]
[345356202,1734180638043,-300.0,0.00020999,2]
[345356203,1734180638052,-62693.78360385,0.00021,2]
[345356204,1734180638062,-500.0,0.0002115,2]
[345356205,1734180638070,-4416.87,0.0002115,2]
[345356206,1734180638079,-150.0,0.000212,2]
[345356207,1734180638089,-500.0,0.00021249,3]
[345356208,1734180638098,-500.0,0.00021249,3]
[345356209,1734180638107,-500.0,0.00021249,3]
[345356210,1734180638116,-500.0,0.00021249,3]
[345356211,1734180638125,-500.0,0.00021249,3]
[345356212,1734180638133,-500.0,0.00021249,3]
[345356213,1734180638143,-500.0,0.00021249,3]
[345356214,1734180638152,-500.0,0.00021249,3]
[345356215,1734180638161,-500.0,0.00021249,3]
[345356216,1734180638170,-500.0,0.00021249,3]
[345356217,1734180638179,-500.0,0.00021249,3]
[345356218,1734180638188,-500.0,0.00021249,3]
[345356219,1734180638197,-456.52,0.00021249,3]
[345356220,1734180638207,-500.0,0.00021249,3]
[345356221,1734180638215,-500.0,0.00021249,3]
[345356223,1734180638224,-500.0,0.00021249,3]
[345356224,1734180638234,-316.23632675,0.00021249,3]
[345356225,1734180638243,-500.0,0.00021249,3]
[345356226,1734180638253,-500.0,0.00021249,3]
[345356227,1734180638265,-500.0,0.00021249,3]
[345356228,1734180638274,-500.0,0.00021249,3]
[345356230,1734180638283,-500.0,0.00021249,3]
[345356232,1734180638293,-500.0,0.00021249,3]
[345356234,1734180638301,-500.0,0.00021249,3]
[345356236,1734180638310,-500.0,0.00021249,3]
[345356238,1734180638320,-500.0,0.00021249,3]
[345356239,1734180638329,-194.1,0.00021249,3]
[345356241,1734180638338,-500.0,0.00021249,3]
[345356243,1734180638346,-500.0,0.00021249,3]
[345356245,1734180638356,-500.0,0.00021249,3]
[345356247,1734180638365,-373.27,0.00021249,3]
[345356249,1734180638374,-500.0,0.00021249,3]
[345356251,1734180638383,-332.36,0.00021249,3]
[345356253,1734180638392,-434.78230394,0.00021249,3]
[345356255,1734180638401,-4633.6645752,0.0002125,2]
[345356257,1734180638410,-800.0,0.0002125,2]
[345356259,1734180638419,-800.0,0.0002125,2]
[345356260,1734180638427,-800.0,0.0002125,2]
[345356261,1734180638436,-800.0,0.0002125,2]
[345356262,1734180638445,-800.0,0.0002125,2]
[345356263,1734180638454,-800.0,0.0002125,2]
[345356264,1734180638463,-67076554.28865198,0.0002125,2]
[345356265,1734180638472,-8998.0,0.0002125,3]
[345356266,1734180638481,-30000.0,0.0002125,2]
[345356267,1734180638491,-500.0,0.00021273,2]
[345356268,1734180638500,-159.86153827,0.00021273,2]
[345356269,1734180638510,-257.26736089,0.00021273,2]
[345356270,1734180638522,-150.019,0.00021774,2]
[345356271,1734180638531,-844.24741654,0.00021821,2]
[345356272,1734180638540,-567.0,0.00021826,2]
[345356273,1734180638548,-1263.0,0.00021826,2]
[345356274,1734180638558,-576.14,0.00021826,2]
[345356275,1734180638566,-1895.0,0.00021826,2]
[345356276,1734180638576,-1254.0,0.00021826,2]
[345356277,1734180638584,-817.0,0.00021826,2]
[345356278,1734180638594,-3204.041,0.00021826,2]
[345356279,1734180638603,-357.159,0.00021826,2]
[345356280,1734180638615,-11208.2,0.00021826,2]
[345356281,1734180638626,-150.0,0.00021826,2]
[345356282,1734180638635,-250.0,0.00021826,2]
[345356283,1734180638644,-1099.0,0.00021826,2]
[345356284,1734180638653,-228.0,0.00021826,2]
[345356285,1734180638662,-167.0,0.00021826,2]
[345356286,1734180638672,-42543.20874064,0.000219,30]
[345356287,1734180638681,-1000.0,0.00021917,3]
[345356288,1734180638690,-1000.0,0.00021917,3]
[345356289,1734180638699,-1052.2017792,0.00021917,3]
[345356290,1734180638708,-13209.42,0.00022,2]
[345356291,1734180638718,-3600.0,0.00022,23]
[345356292,1734180638727,-713.90815792,0.0002205,2]
[345356293,1734180638735,-1255.59347,0.00022088,7]
[345356294,1734180638745,-1255.59347,0.00022288,7]
[345356295,1734180638754,-176.34215268,0.000223,2]
[345356296,1734180638766,-1345.23,0.000224,31]
[345356297,1734180638775,-1345.23,0.000224,31]
[345356298,1734180638784,-1345.23,0.000224,31]
[345356299,1734180638794,-1345.23,0.000224,31]
[345356300,1734180638803,-1345.23,0.000224,31]
[345356301,1734180638812,-1345.23,0.000224,31]
[345356302,1734180638821,-1345.23,0.000224,31]
[345356303,1734180638830,-1345.23,0.000224,31]
[345356304,1734180638839,-1345.23,0.000224,31]
[345356305,1734180638847,-1345.23,0.000224,31]
[345356306,1734180638857,-1345.23,0.000224,31]
[345356307,1734180638866,-1345.23,0.000224,31]
[345356308,1734180638878,-1345.23,0.000224,31]
[345356309,1734180638887,-1345.23,0.000224,31]
[345356310,1734180638896,-1345.23,0.000224,31]
[345356311,1734180638911,-1345.23,0.000224,31]
[345356312,1734180638921,-213614.0,0.00022402,2]
[345356313,1734180638930,-1255.59347,0.00022488,7]
[345356314,1734180638939,-1255.59347,0.00022688,7]
[345356315,1734180638948,-420.0,0.00022842,2]
[345356316,1734180638957,-1000.0,0.00022844,2]
[345356317,1734180638966,-176.34215265,0.00022922,2]
[345356318,1734180638975,-3600.0,0.00023,24]
[345356319,1734180638984,-1255.59347,0.00023088,7]
[345356320,1734180638993,-500.0,0.00023174,2]
[345356321,1734180639002,-500.0,0.00023174,2]
[345356322,1734180639013,-1255.59347,0.00023288,7]
[345356323,1734180639023,-150.0,0.00023317,2]
[345356324,1734180639032,-150.0,0.00023317,2]
[345356325,1734180639041,-211.72940014,0.00023317,2]
[345356326,1734180639050,-150.0,0.00023317,2]
[345356327,1734180639059,-150.0,0.00023317,2]
[345356328,1734180639068,-39458.51260057,0.00023317,2]
[345356329,1734180639077,-2951.82258323,0.00023317,2]
[345356330,1734180639086,-1377.23063318,0.00023317,2]
[345356331,1734180639095,-2063.08144786,0.00023317,2]
[345356332,1734180639104,-292.84,0.00023397,2]
[345356333,1734180639113,-1255.59347,0.00023488,7]
[345356334,1734180639122,-176.34215265,0.00023544,2]
[345356335,1734180639131,-330.43,0.00023685,4]
[345356336,1734180639140,-1255.59347,0.00023688,7]
[345356337,1734180639149,-200.0,0.00023855,2]
[345356338,1734180639158,-3600.0,0.00024,25]
[345356339,1734180639167,-5000.0,0.00024022,2]
[345356340,1734180639176,-5000.0,0.00024049,2]
[345356341,1734180639185,-5000.0,0.00024076,2]
[345356342,1734180639194,-5000.0,0.00024078,2]
[345356343,1734180639203,-2189.27,0.00024083,2]
[345356344,1734180639212,-5000.0,0.00024096,2]
[345356345,1734180639221,-5000.0,0.00024099,2]
[345356346,1734180639230,-5000.0,0.00024119,2]
[345356347,1734180639239,-4260.66,0.00024123,2]
[345356348,1734180639248,-1979.71,0.00024124,2]
[345356349,1734180639257,-176.34215265,0.00024167,2]
[345356350,1734180639274,-5000.0,0.00024171,2]
[345356351,1734180639283,-1284.84,0.00024182,2]
[345356352,1734180639292,-4079.39,0.00024186,2]
[345356353,1734180639302,-25627.12570419,0.00024206,2]
[345356354,1734180639311,-2500.0,0.00024215,2]
[345356355,1734180639320,-5000.0,0.00024234,2]
[345356356,1734180639329,-5000.0,0.00024241,2]
[345356357,1734180639338,-462.78,0.00024247,2]
[345356358,1734180639347,-292.84,0.00024262,2]
[345356359,1734180639356,-25000.0,0.00024291,2]
[345356360,1734180639366,-5000.0,0.00024296,2]
[345356361,1734180639375,-5000.0,0.000243,2]
[345356362,1734180639385,-25000.0,0.00024302,2]
[345356363,1734180639394,-25000.0,0.00024303,2]
[345356364,1734180639403,-1902.57,0.00024319,2]
[345356365,1734180639413,-5000.0,0.00024383,2]
[345356366,1734180639422,-500.0,0.00024478,2]
[345356367,1734180639431,-5000.0,0.00024551,2]
[345356368,1734180639441,-250.0,0.00024604,2]
[345356369,1734180639450,-285.49,0.00024604,2]
[345356370,1734180639459,-1317.31,0.00024604,2]
[345356371,1734180639468,-182.56,0.00024604,2]
[345356372,1734180639477,-2544.02,0.0002462,2]
[345356373,1734180639487,-284.34,0.0002464,120]
[345356374,1734180639496,-150.5,0.0002465,120]
[345356375,1734180639506,-150.5,0.0002465,120]
[345356376,1734180639520,-150.0,0.00024658,7]
[345356377,1734180639529,-1000.0,0.00024658,2]
[345356378,1734180639538,-4504.15,0.00024676,2]
[345356380,1734180639547,-5000.0,0.00024696,2]
[345356382,1734180639565,-1430.67,0.00024698,2]
[345356385,1734180639576,-200.0,0.000247,2]
[345356386,1734180639585,-500.0,0.000247,2]